bitfinex/quotes_BTCUSD_20250616
["timestamp","ask_amount","ask_price","bid_price","bid_amount"]
[1750060364553,1.17156682,107220.0,107210.0,0.45325114]
[1750060364985,1.17162508,107220.0,107210.0,0.45325114]
[1750060366275,1.1940201,107220.0,107210.0,0.45325114]
[1750060366662,1.20334602,107220.0,107210.0,0.45325114]
[1750060366867,1.1940201,107220.0,107210.0,0.45325114]
[1750060367116,1.20334593,107220.0,107210.0,0.45325114]
[1750060367467,1.21267193,107220.0,107210.0,0.45325114]
[1750060367639,1.16318593,107220.0,107210.0,0.45325114]
[1750060367848,1.21259185,107220.0,107210.0,0.45325114]
[1750060368238,1.20326593,107220.0,107210.0,0.45325114]
[1750060368843,1.21259185,107220.0,107210.0,0.45325114]
[1750060369045,1.17251185,107220.0,107210.0,0.45325114]
[1750060369296,1.21259185,107220.0,107210.0,0.45325114]
[1750060369504,0.35941286,107220.0,107210.0,0.42041114]
[1750060369711,1.16876919,107220.0,107210.0,0.42041114]
[1750060369922,1.22191794,107220.0,107210.0,0.42041114]
[1750060370146,1.23124421,107220.0,107210.0,0.42041114]
[1750060370352,1.21259185,107220.0,107210.0,0.26701114]
[1750060370558,1.21259185,107220.0,107210.0,0.42041114]
[1750060371132,1.22191794,107220.0,107210.0,0.26701114]
[1750060371342,1.22191794,107220.0,107210.0,0.42041114]
[1750060371554,1.22191794,107220.0,107210.0,0.26701114]
[1750060371764,1.22191794,107220.0,107210.0,0.42041114]
[1750060371970,1.22191794,107220.0,107210.0,0.26701114]
[1750060372198,1.22191794,107220.0,107210.0,0.42041114]
[1750060372434,1.22191785,107220.0,107210.0,0.42041114]
[1750060372651,1.21259185,107220.0,107210.0,0.42041114]
[1750060372882,1.20326593,107220.0,107210.0,0.42041114]
[1750060373137,1.1939401,107220.0,107210.0,0.42041114]
[1750060373773,1.20326602,107220.0,107210.0,0.42041114]
[1750060374008,1.1939401,107220.0,107210.0,0.42041114]
[1750060374679,1.20326593,107220.0,107210.0,0.42041114]
[1750060375090,1.1939401,107220.0,107210.0,0.42041114]
[1750060375595,1.20326593,107220.0,107210.0,0.42041114]
[1750060376054,1.21259185,107220.0,107210.0,0.38841114]
[1750060376258,1.20511185,107220.0,107210.0,0.38841114]
[1750060376471,1.25451794,107220.0,107210.0,0.38841114]
[1750060376988,1.25451785,107220.0,107210.0,0.36975747]
[1750060377193,1.26384403,107220.0,107210.0,0.37908461]
[1750060377616,1.26384403,107220.0,107210.0,0.22568461]
[1750060377821,1.70442292,107220.0,107210.0,0.37908461]
[1750060378025,1.70442292,107220.0,107210.0,0.3790847]
[1750060378243,1.70443159,107220.0,107210.0,0.38841157]
[1750060378464,1.69510524,107220.0,107210.0,0.38841157]
[1750060379160,1.69510524,107220.0,107210.0,0.2256847]
[1750060379368,1.25452661,107220.0,107210.0,0.38841157]
[1750060379593,1.26385288,107220.0,107210.0,0.38841157]
[1750060379793,1.69510542,107220.0,107210.0,0.38841157]
[1750060380495,1.69510542,107220.0,107210.0,0.38837157]
[1750060380958,1.70443247,107220.0,107210.0,0.37904488]
[1750060381170,1.70443247,107220.0,107210.0,0.22568497]
[1750060381386,1.70443247,107220.0,107210.0,0.37904497]
[1750060381954,1.69510594,107220.0,107210.0,0.37904497]
[1750060382186,1.70443247,107220.0,107210.0,0.37904497]
[1750060383720,1.69510655,107220.0,107210.0,0.36971792]
[1750060383901,1.69510655,107220.0,107210.0,0.37904497]
[1750060384311,1.69510655,107220.0,107210.0,0.36971792]
[1750060384698,1.69510655,107220.0,107210.0,0.36039078]
[1750060384900,1.69510655,107220.0,107210.0,0.37904497]
[1750060385703,1.88163943,107220.0,107210.0,0.16451354]
[1750060385908,1.88163943,107220.0,107210.0,0.17384085]
[1750060386115,1.88163943,107220.0,107210.0,0.02048085]
[1750060386326,1.89498681,107220.0,107210.0,0.00182614]
[1750060386533,2.32190204,107220.0,107210.0,0.00182614]
[1750060386971,2.32190204,107220.0,107210.0,0.01115362]
[1750060387185,2.34055423,107220.0,107210.0,0.01115362]
[1750060387401,2.33122823,107220.0,107210.0,0.00182614]
[1750060389531,2.35923284,107220.0,107210.0,0.00182614]
[1750060390209,2.37305645,107220.0,107210.0,0.00182614]
[1750060391529,2.34505184,107220.0,107210.0,0.00182614]
[1750060392267,2.37305645,107220.0,107210.0,0.00182614]
[1750060395084,2.35923284,107220.0,107210.0,0.00182614]
[1750060397918,2.37377369,107220.0,107210.0,0.00182614]
[1750060398619,2.37373234,107220.0,107210.0,0.00182614]
[1750060402946,0.19587724,107210.0,107200.0,0.00570276]
[1750060403084,1.09842232,107210.0,107200.0,0.00570276]
[1750060403292,1.12080763,107210.0,107200.0,0.00570276]
[1750060403717,1.13946181,107210.0,107200.0,0.00570276]
[1750060404347,1.13946181,107210.0,107200.0,0.01703111]
[1750060405267,1.13946181,107210.0,107200.0,0.02635938]
[1750060405479,1.13946181,107210.0,107200.0,0.01703111]
[1750060405694,1.13946181,107210.0,107200.0,0.00770276]
[1750060405903,1.13946181,107210.0,107200.0,0.01703111]
[1750060407734,1.13946181,107210.0,107200.0,0.00770276]
[1750060407735,2.41720618,107210.0,107200.0,0.00770276]
[1750060407948,2.46706086,107210.0,107200.0,0.00770276]
[1750060408157,1.65802127,107210.0,107200.0,0.27482619]
[1750060408351,1.7083819,107210.0,107200.0,0.06960276]
[1750060408571,1.7484219,107210.0,107200.0,0.06960276]
[1750060408979,1.7484219,107210.0,107200.0,0.04743111]
[1750060409176,1.73909485,107210.0,107200.0,0.03810276]
[1750060409391,1.73909485,107210.0,107200.0,0.04743111]
[1750060409592,1.82363895,107210.0,107200.0,0.00770276]
[1750060409793,1.82363895,107210.0,107200.0,0.19426992]
[1750060409997,1.82363895,107210.0,107200.0,0.00770276]
[1750060410216,1.82363895,107210.0,107200.0,0.04823111]
[1750060410623,1.82363895,107210.0,107200.0,0.03890276]
[1750060411469,1.82363895,107210.0,107200.0,0.04823111]
[1750060411885,1.73909485,107210.0,107200.0,0.04823111]
[1750060412722,1.73909485,107210.0,107200.0,0.03890276]
[1750060413311,1.69905485,107210.0,107200.0,0.03890276]
[1750060413534,1.73909485,107210.0,107200.0,0.04823111]
[1750060413737,0.83654977,107210.0,107200.0,0.04823111]
[1750060413902,1.69905485,107210.0,107200.0,0.22546992]
[1750060414096,1.73909485,107210.0,107200.0,0.26799819]
[1750060414349,1.73909485,107210.0,107200.0,0.27732628]
[1750060414733,1.73909485,107210.0,107200.0,0.26799819]
[1750060415180,1.73909485,107210.0,107200.0,0.27732637]
[1750060415591,1.73909485,107210.0,107200.0,0.26799819]
[1750060415802,1.83524407,107210.0,107200.0,0.23479819]
[1750060415981,1.83524407,107210.0,107200.0,0.24412637]
[1750060416409,1.83524407,107210.0,107200.0,0.23479819]
[1750060416618,1.73909485,107210.0,107200.0,0.23479819]
[1750060417240,1.73909485,107210.0,107200.0,0.24412637]
[1750060417641,1.73909485,107210.0,107200.0,0.23479819]
[1750060417807,1.73909485,107210.0,107200.0,0.24412637]
[1750060418027,1.73909485,107210.0,107200.0,0.23479819]
[1750060419622,1.73909485,107210.0,107200.0,0.24412637]
[1750060420570,1.73909485,107210.0,107200.0,0.23479819]
[1750060420772,1.73909485,107210.0,107200.0,0.24412637]
[1750060421817,1.73909485,107210.0,107200.0,0.23479819]
[1750060422615,1.83524407,107210.0,107200.0,0.23479819]
[1750060422854,1.83524407,107210.0,107200.0,0.23479827]
[1750060423059,1.83524407,107210.0,107200.0,0.24412654]
[1750060423758,1.86322571,107210.0,107200.0,0.24412654]
[1750060423980,1.86322571,107210.0,107200.0,0.25345472]
[1750060424438,1.86322571,107210.0,107200.0,0.24412654]
[1750060425706,1.76707649,107210.0,107200.0,0.21292654]
[1750060426502,1.76707649,107210.0,107200.0,0.24332654]
[1750060426922,1.76707649,107210.0,107200.0,0.25265472]
[1750060427126,1.76707649,107210.0,107200.0,0.21292654]
[1750060427332,1.76707649,107210.0,107200.0,0.24322654]
[1750060427761,1.76707649,107210.0,107200.0,0.25255472]
[1750060428052,1.76707649,107210.0,107200.0,0.24322654]
[1750060428188,1.76707649,107210.0,107200.0,0.25255463]
[1750060428405,1.76707649,107210.0,107200.0,0.25255472]
[1750060428611,1.76707649,107210.0,107200.0,0.26188281]
[1750060428854,0.45363785,107210.0,107200.0,0.30221021]
[1750060429071,0.76259785,107210.0,107200.0,0.30221021]
[1750060429252,0.74021254,107210.0,107200.0,0.30221021]
[1750060429648,1.08021254,107210.0,107200.0,0.30221021]
[1750060433792,1.51146508,107210.0,107200.0,0.30221021]
[1750060434923,1.08021254,107210.0,107200.0,0.30221021]
[1750060435353,1.51146508,107210.0,107200.0,0.30221021]
[1750060440509,1.47146508,107210.0,107200.0,0.30221021]
[1750060440715,1.51146508,107210.0,107200.0,0.30221021]
[1750060442103,1.51146508,107210.0,107200.0,0.45545021]
[1750060444321,1.52079178,107210.0,107200.0,0.45545021]
[1750060444534,1.52079187,107210.0,107200.0,0.45545021]
[1750060445216,0.26896,107210.0,107200.0,0.45541021]
[1750060445431,0.74021254,107210.0,107200.0,0.55165197]
[1750060446067,1.08021254,107210.0,107200.0,0.55165197]
[1750060446529,0.64896,107210.0,107200.0,0.55165197]
[1750060446748,1.08021254,107210.0,107200.0,0.55165197]
[1750060450650,1.04021254,107210.0,107200.0,0.39845197]
[1750060450848,1.08017254,107210.0,107200.0,0.55165197]
[1750060462302,1.08017254,107210.0,107200.0,0.39845197]
[1750060462818,1.08017254,107210.0,107200.0,0.55157197]
[1750060466054,1.51142508,107210.0,107200.0,0.27121021]
[1750060466257,1.51142508,107210.0,107200.0,0.39403021]
[1750060466975,1.51142508,107210.0,107200.0,0.42463021]
[1750060467907,1.08017254,107210.0,107200.0,0.42463021]
[1750060473209,1.08017254,107210.0,107200.0,0.45553021]
[1750060474812,0.64892,107210.0,107200.0,0.27151021]
[1750060475038,0.64892,107210.0,107200.0,0.39403021]
[1750060475270,1.08017254,107210.0,107200.0,0.39403021]
[1750060475495,0.64892,107210.0,107200.0,0.39403021]
[1750060475758,1.51142508,107210.0,107200.0,0.39403021]
[1750060477900,1.08017254,107210.0,107200.0,0.39403021]
[1750060478345,1.07517254,107210.0,107200.0,0.39403021]
[1750060478569,0.81121254,107210.0,107200.0,0.39403021]
[1750060479083,0.80621254,107210.0,107200.0,0.39403021]
[1750060479733,0.80621254,107210.0,107200.0,0.24091021]
[1750060479992,0.80621254,107210.0,107200.0,0.39399021]
[1750060484208,0.80621254,107210.0,107200.0,0.42719021]
[1750060489845,0.80613254,107210.0,107200.0,0.42719021]
[1750060490504,0.80613254,107210.0,107200.0,0.45759021]
[1750060490505,0.37488,107210.0,107200.0,0.45759021]
[1750060490707,0.80613254,107210.0,107200.0,0.45759021]
[1750060492035,0.37488,107210.0,107200.0,0.45759021]
[1750060492235,0.80613254,107210.0,107200.0,0.45759021]
[1750060493743,0.80613254,107210.0,107200.0,0.55383197]
[1750060496500,0.37488,107210.0,107200.0,0.40075197]
[1750060496737,0.80613254,107210.0,107200.0,0.55383197]
[1750060506210,0.80613254,107210.0,107200.0,0.52343197]
[1750060506873,0.80613254,107210.0,107200.0,0.55653197]
[1750060509485,0.37488,107210.0,107200.0,0.55653197]
[1750060509727,0.80613254,107210.0,107200.0,0.55653197]
[1750060511132,0.80613254,107210.0,107200.0,0.52343197]
[1750060513787,0.80613254,107210.0,107200.0,0.37035197]
[1750060514046,0.80613254,107210.0,107200.0,0.52339197]
[1750060515939,0.37488,107210.0,107200.0,0.52339197]
[1750060516290,0.80613254,107210.0,107200.0,0.52339197]
[1750060518058,0.37488,107210.0,107200.0,0.52339197]
[1750060518283,0.80613254,107210.0,107200.0,0.52339197]
[1750060524211,0.80613254,107210.0,107200.0,0.37035197]
[1750060524675,0.80613254,107210.0,107200.0,0.52339197]
[1750060525101,0.80613254,107210.0,107200.0,0.37035197]
[1750060525314,0.80613254,107210.0,107200.0,0.52339197]
[1750060527401,0.80613254,107210.0,107200.0,0.37035197]
[1750060527640,0.80613254,107210.0,107200.0,0.52339197]
[1750060528241,0.80613254,107210.0,107200.0,0.37035197]
[1750060528448,0.80613254,107210.0,107200.0,0.52339197]
[1750060529034,0.80853254,107210.0,107200.0,0.52339197]
[1750060531826,0.37728,107210.0,107200.0,0.52339197]
[1750060532054,0.80853254,107210.0,107200.0,0.52339197]
[1750060532897,0.80853254,107210.0,107200.0,0.37035197]
[1750060533132,0.80853254,107210.0,107200.0,0.52339197]
[1750060536305,0.80853254,107210.0,107200.0,0.49019197]
[1750060536977,1.23978508,107210.0,107200.0,0.49019197]
[1750060537612,1.23978508,107210.0,107200.0,0.33715197]
[1750060537833,1.31301187,107210.0,107200.0,0.39395021]
[1750060538301,1.33166597,107210.0,107200.0,0.39395021]
[1750060538523,1.32233883,107210.0,107200.0,0.39395021]
[1750060538747,1.31301187,107210.0,107200.0,0.39395021]
[1750060539009,1.32233874,107210.0,107200.0,0.39395021]
[1750060539874,0.42873366,107210.0,107200.0,0.39395021]
[1750060540109,1.28191187,107210.0,107200.0,0.39395021]
[1750060540963,1.28191178,107210.0,107200.0,0.39395021]
[1750060547342,1.27258508,107210.0,107200.0,0.39395021]
[1750060547695,1.27258508,107210.0,107200.0,0.24091021]
[1750060547914,1.28191178,107210.0,107200.0,0.39391021]
[1750060548106,1.27258508,107210.0,107200.0,0.39391021]
[1750060549461,1.23978508,107210.0,107200.0,0.39391021]
[1750060551480,1.19990508,107210.0,107200.0,0.39391021]
[1750060551694,1.23974508,107210.0,107200.0,0.39391021]
[1750060551906,0.80849254,107210.0,107200.0,0.55395197]
[1750060553640,0.76865254,107210.0,107200.0,0.55395197]
[1750060553850,0.80849254,107210.0,107200.0,0.55395197]
[1750060562698,0.0024,107210.0,107200.0,0.55395197]
[1750060562926,0.47349254,107210.0,107200.0,0.55395197]
[1750060563876,0.47349254,107210.0,107200.0,0.55495197]
[1750060564091,0.47349254,107210.0,107200.0,0.55295197]
[1750060564471,0.47349254,107210.0,107200.0,0.55595197]
[1750060565134,0.0024,107210.0,107200.0,0.55595197]
[1750060565304,0.47349254,107210.0,107200.0,0.55595197]
[1750060571665,0.47109254,107210.0,107200.0,0.55595197]
[1750060573871,0.03984,107210.0,107200.0,0.55595197]
[1750060574083,0.47109254,107210.0,107200.0,0.55595197]
[1750060575215,0.03984,107210.0,107200.0,0.55595197]
[1750060575429,0.47109254,107210.0,107200.0,0.55595197]
[1750060579536,0.03984,107210.0,107200.0,0.55595197]
[1750060579746,0.47109254,107210.0,107200.0,0.55595197]
[1750060584296,0.47109254,107210.0,107200.0,0.40295197]
[1750060584568,0.47109254,107210.0,107200.0,0.55587197]
[1750060584955,0.43125254,107210.0,107200.0,0.55587197]
[1750060585164,0.47105254,107210.0,107200.0,0.55587197]
[1750060587000,0.47105254,107210.0,107200.0,0.52467197]
[1750060590508,0.0398,107210.0,107200.0,0.52467197]
[1750060590723,0.47105254,107210.0,107200.0,0.52467197]
[1750060600486,0.0398,107210.0,107200.0,0.52467197]
[1750060600684,0.47105254,107210.0,107200.0,0.52467197]
[1750060601145,0.87405254,107210.0,107200.0,0.21492637]
[1750060601348,1.30530508,107210.0,107200.0,0.38646212]
[1750060601789,1.32395883,107210.0,107200.0,0.38646212]
[1750060601920,1.33328597,107210.0,107200.0,0.38646212]
[1750060602120,1.32395883,107210.0,107200.0,0.38646212]
[1750060602334,1.32395883,107210.0,107200.0,0.38246212]
[1750060603448,0.02798402,107200.0,107190.0,0.00932914]
[1750060603652,0.35865732,107190.0,107180.0,0.21450827]
[1750060603853,1.42640498,107190.0,107170.0,0.34385345]
[1750060604038,0.36798654,107190.0,107180.0,0.36747173]
[1750060604249,0.40778654,107190.0,107180.0,0.21459173]
[1750060604461,0.40778654,107190.0,107180.0,0.37680148]
[1750060604667,0.46998654,107190.0,107180.0,0.22439291]
[1750060604886,0.46998654,107190.0,107180.0,0.3864287]
[1750060605095,0.47298654,107190.0,107180.0,0.38642826]
[1750060605302,1.33249162,107190.0,107180.0,0.37709834]
[1750060605722,1.33549162,107190.0,107180.0,0.37709834]
[1750060606274,1.32616257,107190.0,107180.0,0.37709834]
[1750060606486,1.33549171,107190.0,107180.0,0.21488877]
[1750060606713,1.33549171,107190.0,107180.0,0.36776877]
[1750060606926,1.32616257,107190.0,107180.0,0.37709834]
[1750060607142,1.52207618,107190.0,107180.0,0.00047143]
[1750060607339,1.5314054,107190.0,107180.0,0.00980144]
[1750060607613,1.5314054,107190.0,107140.0,0.9053066]
[1750060607614,0.0322,107150.0,107140.0,0.9053066]
[1750060607838,0.0322,107150.0,107140.0,0.33272627]
[1750060607839,0.96802699,107150.0,107140.0,0.33272627]
[1750060608055,0.54610663,107150.0,107140.0,0.4856069]
[1750060608275,0.97735909,107150.0,107140.0,0.3146868]
[1750060608495,0.98669136,107150.0,107140.0,0.47627565]
[1750060608709,0.98669127,107150.0,107140.0,0.47627585]
[1750060608938,0.95869507,107150.0,107140.0,0.4762759]
[1750060609166,0.04996759,107130.0,107120.0,0.19604146]
[1750060609383,1.23380508,107130.0,107120.0,0.36759132]
[1750060609600,1.24353261,107130.0,107120.0,0.36763846]
[1750060610713,1.24353261,107130.0,107120.0,0.21475846]
[1750060610957,1.27527729,107130.0,107120.0,0.36767846]
[1750060611394,1.28461104,107130.0,107120.0,0.36767846]
[1750060611607,1.27627729,107130.0,107120.0,0.36767846]
[1750060611824,1.27727729,107130.0,107120.0,0.36767846]
[1750060612041,1.30483738,107130.0,107120.0,0.36767846]
[1750060615106,0.8510625,107130.0,107120.0,0.36767846]
[1750060615533,0.8112625,107130.0,107120.0,0.36767846]
[1750060615748,0.8510625,107130.0,107120.0,0.21475846]
[1750060615962,0.8500625,107130.0,107120.0,0.36771846]
[1750060616414,0.8520625,107130.0,107120.0,0.36771846]
[1750060616956,0.8122625,107130.0,107120.0,0.36771846]
[1750060617164,0.8520625,107130.0,107120.0,0.36771846]
[1750060617369,0.8510625,107130.0,107120.0,0.36771846]
[1750060617564,0.8500625,107130.0,107120.0,0.36771846]
[1750060617788,0.8520625,107130.0,107120.0,0.36771846]
[1750060618190,0.8510625,107130.0,107120.0,0.36771846]
[1750060618388,0.8520625,107130.0,107120.0,0.36771846]
[1750060619032,0.37056009,107130.0,107120.0,0.36771846]
[1750060619275,0.0428,107130.0,107120.0,0.49676022]
[1750060620123,0.0428,107130.0,107120.0,0.52756022]
[1750060620330,0.0418,107130.0,107120.0,0.52756022]
[1750060620544,0.0398,107130.0,107120.0,0.52756022]
[1750060621560,0.36845093,107140.0,107130.0,0.21469136]
[1750060621775,0.84022581,107140.0,107130.0,0.36765136]
[1750060622583,0.84022581,107140.0,107130.0,0.21469136]
[1750060622812,0.84022581,107140.0,107130.0,0.36765136]
[1750060623618,0.84022581,107140.0,107130.0,0.36747748]
[1750060623619,0.84122581,107140.0,107130.0,0.36747748]
[1750060623842,0.84322581,107140.0,107130.0,0.36747748]
[1750060624052,0.84322581,107140.0,107130.0,0.38489667]
[1750060624521,0.84322581,107140.0,107130.0,0.36747748]
[1750060624744,0.84322581,107140.0,107130.0,0.38489631]
[1750060624867,0.84322581,107140.0,107130.0,0.36747748]
[1750060625303,0.07125093,107140.0,107130.0,0.36747748]
[1750060625536,0.003,107140.0,107130.0,0.37345924]
[1750060625743,0.0428,107140.0,107130.0,0.95839412]
[1750060626377,0.0418,107140.0,107130.0,0.95839412]
[1750060626583,0.34,107150.0,107140.0,0.21467133]
[1750060626882,0.3798,107150.0,107140.0,0.34191309]
[1750060627952,0.3808,107150.0,107140.0,0.34191309]
[1750060628103,0.3828,107150.0,107140.0,0.34191309]
[1750060628499,0.81477488,107150.0,107140.0,0.34191309]
[1750060628699,0.81477488,107150.0,107140.0,0.31091309]
[1750060628918,0.81477488,107150.0,107140.0,0.21467133]
[1750060629158,0.88840698,107150.0,107140.0,0.36763133]
[1750060629403,0.89773898,107150.0,107140.0,0.35829836]
[1750060629712,0.8884068,107150.0,107140.0,0.36763133]
[1750060629933,0.8977389,107150.0,107140.0,0.36763133]
[1750060630136,0.8884068,107150.0,107140.0,0.36763133]
[1750060630341,0.8977389,107150.0,107140.0,0.36763133]
[1750060631969,0.90707117,107150.0,107140.0,0.21467133]
[1750060632163,0.90707117,107150.0,107140.0,0.36763133]
[1750060632795,0.46576402,107150.0,107140.0,0.36763133]
[1750060632946,0.90707117,107150.0,107140.0,0.36763133]
[1750060633420,0.8977389,107150.0,107140.0,0.36763133]
[1750060635294,0.8884068,107150.0,107140.0,0.36763133]
[1750060635513,0.8977389,107150.0,107140.0,0.36763133]
[1750060635726,0.89773881,107150.0,107140.0,0.36763133]
[1750060637506,0.81477488,107150.0,107140.0,0.21467133]
[1750060637745,0.81477488,107150.0,107140.0,0.36763133]
[1750060638204,0.83713449,107150.0,107140.0,0.36763133]
[1750060642456,0.83713449,107150.0,107140.0,0.21467133]
[1750060642704,0.83713449,107150.0,107140.0,0.36759133]
[1750060643562,0.40515961,107150.0,107140.0,0.36759133]
[1750060643790,0.83713449,107150.0,107140.0,0.36759133]
[1750060644685,0.79733449,107150.0,107140.0,0.36759133]
[1750060644944,0.83709449,107150.0,107140.0,0.36759133]
[1750060645748,0.79733449,107150.0,107140.0,0.36759133]
[1750060645979,0.83709449,107150.0,107140.0,0.36759133]
[1750060646444,0.83709449,107150.0,107140.0,0.39909133]
[1750060651309,0.83709449,107150.0,107140.0,0.36759133]
[1750060651716,0.40511961,107150.0,107140.0,0.36759133]
[1750060652197,0.40511961,107150.0,107140.0,0.52583309]
[1750060653423,0.38276,107150.0,107140.0,0.52583309]
[1750060653653,0.81473488,107150.0,107140.0,0.37291309]
[1750060653878,0.83709449,107150.0,107140.0,0.46383309]
[1750060654535,0.83709449,107150.0,107140.0,0.49623309]
[1750060655572,0.40511961,107150.0,107140.0,0.49623309]
[1750060655804,0.83709449,107150.0,107140.0,0.49623309]
[1750060657510,0.83709449,107150.0,107140.0,0.46383309]
[1750060658020,0.83709449,107150.0,107140.0,0.49603309]
[1750060658460,0.81473488,107150.0,107140.0,0.49603309]
[1750060662076,0.81473488,107150.0,107140.0,0.52723309]
[1750060663025,0.81473488,107150.0,107140.0,0.49603309]
[1750060668002,0.81473488,107150.0,107140.0,0.59603309]
[1750060669138,0.81473488,107150.0,107140.0,0.56383309]
[1750060669952,0.81473488,107150.0,107140.0,0.59603309]
[1750060671916,0.38276,107150.0,107140.0,0.62813309]
[1750060673907,0.04276,107150.0,107140.0,0.62813309]
[1750060675477,0.003,107150.0,107140.0,0.62813309]
[1750060675736,0.04276,107150.0,107140.0,0.62813309]
[1750060676477,0.04176,107150.0,107140.0,0.62813309]
[1750060676964,0.03976,107150.0,107140.0,0.62813309]
[1750060677947,0.03976,107150.0,107140.0,0.62809309]
[1750060680259,0.34,107160.0,107150.0,0.2776513]
[1750060680492,0.37976,107160.0,107150.0,0.37389306]
[1750060680746,0.34,107160.0,107150.0,0.37389306]
[1750060680968,0.03976,107160.0,107150.0,0.37389306]
[1750060682452,0.04076,107160.0,107150.0,0.37389306]
[1750060682919,0.04910904,107160.0,107150.0,0.37389306]
[1750060684143,1.16907432,107170.0,107160.0,0.24473127]
[1750060684372,1.20883432,107170.0,107160.0,0.39761127]
[1750060684916,0.74884,107170.0,107160.0,0.49615303]
[1750060686012,0.74984,107170.0,107160.0,0.49615303]
[1750060686556,0.40984,107170.0,107160.0,0.49615303]
[1750060686800,0.40984,107170.0,107160.0,0.52931303]
[1750060687193,0.43939802,107170.0,107160.0,0.52931303]
[1750060690051,0.39963802,107170.0,107160.0,0.52931303]
[1750060690268,0.13055802,107170.0,107160.0,0.37647303]
[1750060690484,0.103,107170.0,107160.0,0.89818733]
[1750060690695,0.103,107170.0,107160.0,0.62647303]
[1750060690910,0.1,107170.0,107160.0,0.77931303]
[1750060691159,0.1,107170.0,107160.0,1.21128791]
[1750060691582,0.1,107170.0,107160.0,1.22582876]
[1750060692024,0.1,107170.0,107160.0,1.65780364]
[1750060692232,0.08482314,107170.0,107160.0,1.65780364]
[1750060692691,0.03482314,107170.0,107160.0,1.65980364]
[1750060693332,0.03482314,107170.0,107160.0,1.22782876]
[1750060693997,0.03482314,107170.0,107160.0,1.22982876]
[1750060696829,0.03482314,107170.0,107160.0,1.07698876]
[1750060697039,0.03482314,107170.0,107160.0,1.22978876]
[1750060699295,0.03482314,107170.0,107160.0,1.07698876]
[1750060699516,0.03482314,107170.0,107160.0,0.79781388]
[1750060699965,0.49789802,107170.0,107160.0,0.31487303]
[1750060700211,0.53069802,107170.0,107160.0,0.31487303]
[1750060700439,0.53069802,107170.0,107160.0,0.46767303]
[1750060701043,0.53069802,107170.0,107160.0,0.46567303]
[1750060701268,0.53069802,107170.0,107160.0,0.46367303]
[1750060701822,0.53069802,107170.0,107160.0,0.31087303]
[1750060702040,0.53069802,107170.0,107160.0,0.46367303]
[1750060702724,0.53069802,107170.0,107160.0,0.31087303]
[1750060702936,0.53069802,107170.0,107160.0,0.36743127]
[1750060703157,0.53079802,107170.0,107160.0,0.36743127]
[1750060704708,0.57051802,107170.0,107160.0,0.36743127]
[1750060706005,0.03492314,107170.0,107160.0,0.46367303]
[1750060706248,0.07464314,107170.0,107160.0,0.46367303]
[1750060706767,0.07464314,107170.0,107160.0,0.49657303]
[1750060707208,0.07464314,107170.0,107160.0,0.52947303]
[1750060707416,0.07464314,107170.0,107160.0,0.46367303]
[1750060707847,0.07464314,107170.0,107160.0,0.49437303]
[1750060708034,0.07464314,107170.0,107160.0,0.46367303]
[1750060708790,0.0001,107170.0,107160.0,0.46367303]
[1750060709008,0.03982,107170.0,107160.0,0.46367303]
[1750060709505,0.03982,107170.0,107160.0,0.31087303]
[1750060709716,0.03982,107170.0,107160.0,0.46367303]
[1750060712349,0.47179488,107170.0,107160.0,0.46367303]
[1750060712828,0.53469488,107170.0,107160.0,0.46367303]
[1750060713051,0.50409488,107170.0,107160.0,0.46367303]
[1750060714706,0.53589488,107170.0,107160.0,0.31087303]
[1750060714910,0.53589488,107170.0,107160.0,0.46367303]
[1750060716257,0.10392,107170.0,107160.0,0.46367303]
[1750060716469,0.53589488,107170.0,107160.0,0.46367303]
[1750060718347,0.07212,107170.0,107160.0,0.46367303]
[1750060718561,0.03982,107170.0,107160.0,0.46367303]
[1750060719013,0.47179488,107170.0,107160.0,0.46367303]
[1750060719502,0.50469488,107170.0,107160.0,0.46367303]
[1750060720152,0.47179488,107170.0,107160.0,0.46367303]
[1750060722667,0.03982,107170.0,107160.0,0.46367303]
[1750060723333,0.50439488,107170.0,107160.0,0.46367303]
[1750060723918,0.53589488,107170.0,107160.0,0.46363303]
[1750060724828,0.50439488,107170.0,107160.0,0.46363303]
[1750060725264,0.47179488,107170.0,107160.0,0.46363303]
[1750060725768,0.53409488,107170.0,107160.0,0.46363303]
[1750060726368,0.50379488,107170.0,107160.0,0.46363303]
[1750060726986,0.47179488,107170.0,107160.0,0.46363303]
[1750060730881,0.50379488,107170.0,107160.0,0.46363303]
[1750060731491,0.47179488,107170.0,107160.0,0.46363303]
[1750060732274,0.53789488,107170.0,107160.0,0.46363303]
[1750060732713,0.10592,107170.0,107160.0,0.46363303]
[1750060732926,0.53789488,107170.0,107160.0,0.46363303]
[1750060740622,0.55655559,107170.0,107160.0,0.36739127]
[1750060741054,0.55655559,107170.0,107160.0,0.21463127]
[1750060741082,0.55655559,107170.0,107160.0,0.36739127]
[1750060741291,0.55655559,107170.0,107160.0,0.21463127]
[1750060741549,0.55655559,107170.0,107160.0,0.36739127]
[1750060741804,0.56588621,107170.0,107160.0,0.36739127]
[1750060742311,0.55655559,107170.0,107160.0,0.36739127]
[1750060742577,0.56588621,107170.0,107160.0,0.36739127]
[1750060742828,0.55655559,107170.0,107160.0,0.36739127]
[1750060743843,0.54722515,107170.0,107160.0,0.36739127]
[1750060744188,0.0662,107170.0,107160.0,0.21463127]
[1750060744477,0.03978,107170.0,107160.0,0.52533303]
[1750060745515,0.47175488,107170.0,107160.0,0.52533303]
[1750060745960,0.43207488,107170.0,107160.0,0.52533303]
[1750060746199,0.47175488,107170.0,107160.0,0.52533303]
[1750060747458,0.47175488,107170.0,107160.0,0.49503303]
[1750060748444,0.47175488,107170.0,107160.0,0.46363303]
[1750060748659,0.50345488,107170.0,107160.0,0.46363303]
[1750060749095,0.47175488,107170.0,107160.0,0.46363303]
[1750060752045,0.50345488,107170.0,107160.0,0.46363303]
[1750060752915,0.47175488,107170.0,107160.0,0.46363303]
[1750060768410,0.48108506,107170.0,107160.0,0.46363303]
[1750060768596,0.47175488,107170.0,107160.0,0.46363303]
[1750060768893,0.48108506,107170.0,107160.0,0.46363303]
[1750060770162,0.49041533,107170.0,107160.0,0.46363303]
[1750060770372,0.53004569,107170.0,107160.0,0.46363303]
[1750060771398,0.53937613,107170.0,107160.0,0.36739127]
[1750060771660,0.57880675,107170.0,107160.0,0.21463127]
[1750060771875,0.57880796,107170.0,107160.0,0.35806004]
[1750060772080,0.57880788,107170.0,107160.0,0.36739144]
[1750060772776,0.57880788,107170.0,107160.0,0.37672275]
[1750060773226,0.73813584,107170.0,107150.0,0.2053185]
[1750060773408,0.50530602,107160.0,107150.0,0.20536564]
[1750060773615,0.51463733,107160.0,107150.0,0.35812564]
[1750060773841,0.49597488,107160.0,107150.0,0.35812564]
[1750060774056,0.50530593,107160.0,107150.0,0.35812564]
[1750060774272,0.50530593,107160.0,107150.0,0.20536564]
[1750060774456,0.49597488,107160.0,107150.0,0.35812564]
[1750060774830,0.49597488,107160.0,107150.0,0.36212564]
[1750060775031,0.43197488,107160.0,107150.0,0.36212564]
[1750060775257,0.47165488,107160.0,107150.0,0.20936564]
[1750060775531,0.47165488,107160.0,107150.0,0.36212564]